[Event "*** Titled Tuesday Blitz"]
[Site "Chess.com"]
[Date "2021.02.02"]
[Round "9"]
[White "Sofiia_Hryzlova"]
[Black "Moon_stone123"]
[Result "0-1"]
[WhiteElo "2257"]
[BlackElo "2435"]
[TimeControl "180+1"]
[EndTime "11:46:31 PST"]
[Termination "Moon_stone123 won by resignation"]

1. c4 {[%clk 0:03:00.9]} 1... Nf6 {[%clk 0:02:57.8]} 2. Nc3 {[%clk 0:03:00.2]}
2... e6 {[%clk 0:02:57.9]} 3. e4 {[%clk 0:02:57.2]} 3... d5 {[%clk 0:02:58.3]}
4. cxd5 {[%clk 0:02:57]} 4... exd5 {[%clk 0:02:59.2]} 5. e5 {[%clk 0:02:57.2]}
5... d4 {[%clk 0:02:59.1]} 6. exf6 {[%clk 0:02:44.1]} 6... dxc3 {[%clk 0:02:59]}
7. bxc3 {[%clk 0:02:44.1]} 7... Qxf6 {[%clk 0:02:57.8]} 8. Nf3 {[%clk
0:02:43.9]} 8... Bd6 {[%clk 0:02:55.8]} 9. Be2 {[%clk 0:02:43.5]} 9... O-O
{[%clk 0:02:55.7]} 10. d4 {[%clk 0:02:43.5]} 10... c5 {[%clk 0:02:55.1]} 11. Be3
{[%clk 0:02:42.3]} 11... Nc6 {[%clk 0:02:54.2]} 12. O-O {[%clk 0:02:41.3]} 12...
cxd4 {[%clk 0:02:53.6]} 13. cxd4 {[%clk 0:02:40.6]} 13... Bf5 {[%clk 0:02:51.1]}
14. Qb3 {[%clk 0:02:35.9]} 14... b6 {[%clk 0:02:47.7]} 15. Rac1 {[%clk 0:02:26]}
15... Na5 {[%clk 0:02:46.8]} 16. Qd5 {[%clk 0:02:22.8]} 16... Rfd8 {[%clk
0:02:43]} 17. Bg5 {[%clk 0:02:21.4]} 17... Bxh2+ {[%clk 0:02:34.5]} 18. Kxh2
{[%clk 0:02:17.1]} 18... Rxd5 {[%clk 0:02:34.6]} 19. Bxf6 {[%clk 0:02:15.6]}
19... gxf6 {[%clk 0:02:35.5]} 20. Nh4 {[%clk 0:02:12.9]} 20... Be4 {[%clk
0:02:26.9]} 21. f3 {[%clk 0:02:02.1]} 21... Bg6 {[%clk 0:02:26.2]} 22. f4 {[%clk
0:01:50.8]} 22... Rxd4 {[%clk 0:02:21]} 23. Rc3 {[%clk 0:01:45]} 23... Re8
{[%clk 0:02:14.8]} 24. Bb5 {[%clk 0:01:41.7]} 24... Red8 {[%clk 0:02:07.8]} 25.
Rff3 {[%clk 0:01:37.1]} 25... Rd2 {[%clk 0:01:54.3]} 26. f5 {[%clk 0:01:34.6]}
26... Bh5 {[%clk 0:01:52.3]} 27. Rg3+ {[%clk 0:01:30.2]} 27... Kf8 {[%clk
0:01:51.9]} 28. Rc7 {[%clk 0:01:25.8]} 28... Rxa2 {[%clk 0:01:46.8]} 29. Nf3
{[%clk 0:01:15.5]} 29... Bxf3 {[%clk 0:01:45.3]} 30. Rxf3 {[%clk 0:01:13.9]}
30... Rd5 {[%clk 0:01:33.3]} 31. Bf1 {[%clk 0:01:05.1]} 31... Rc5 {[%clk
0:01:29.4]} 32. Rxa7 {[%clk 0:01:04.1]} 32... Rac2 {[%clk 0:01:24.7]} 33. Ra8+
{[%clk 0:01:01.9]} 33... Rc8 {[%clk 0:01:22.6]} 34. Ra7 {[%clk 0:01:01]} 34...
R2c7 {[%clk 0:01:21.9]} 35. Ra6 {[%clk 0:01:00.5]} 35... Rb8 {[%clk 0:01:16.8]}
36. Rh3 {[%clk 0:00:58.3]} 36... Kg7 {[%clk 0:01:13.6]} 37. Be2 {[%clk
0:00:54.6]} 37... Nc6 {[%clk 0:01:12.2]} 38. Ra4 {[%clk 0:00:52.2]} 38... b5
{[%clk 0:01:11.6]} 39. Rg4+ {[%clk 0:00:51.7]} 39... Kf8 {[%clk 0:01:06.8]} 40.
Rxh7 {[%clk 0:00:51.6]} 40... Ke7 {[%clk 0:01:07]} 41. Rgg7 {[%clk 0:00:49.7]}
41... Ne5 {[%clk 0:01:07.3]} 42. Bh5 {[%clk 0:00:46.5]} 42... Rf8 {[%clk
0:01:03.7]} 43. Rg3 {[%clk 0:00:44.9]} 43... Rb7 {[%clk 0:01:02.2]} 44. Rb3
{[%clk 0:00:44.1]} 44... b4 {[%clk 0:01:01.8]} 45. Kg3 {[%clk 0:00:43.6]} 45...
Rg8+ {[%clk 0:00:58.7]} 46. Kf2 {[%clk 0:00:40.3]} 46... Rc8 {[%clk 0:00:59.2]}
47. Re3 {[%clk 0:00:35.9]} 47... Kd6 {[%clk 0:00:47.4]} 48. Bd1 {[%clk
0:00:30.2]} 48... Rc3 {[%clk 0:00:46.4]} 49. Rhh3 {[%clk 0:00:24.4]} 49... Rxe3
{[%clk 0:00:44.8]} 50. Rxe3 {[%clk 0:00:24.1]} 50... Kc5 {[%clk 0:00:43.6]} 51.
g4 {[%clk 0:00:21]} 51... Kd4 {[%clk 0:00:43]} 52. g5 {[%clk 0:00:20.4]} 52...
fxg5 {[%clk 0:00:40.8]} 53. Rg3 {[%clk 0:00:18.3]} 53... f6 {[%clk 0:00:40.7]}
54. Bb3 {[%clk 0:00:16.8]} 54... Nd3+ {[%clk 0:00:39]} 55. Ke2 {[%clk 0:00:15]}
55... Re7+ {[%clk 0:00:38.8]} 56. Kd2 {[%clk 0:00:14.7]} 56... Nc5 {[%clk
0:00:38.1]} 57. Bg8 {[%clk 0:00:13.1]} 57... Ne4+ {[%clk 0:00:38.2]} 0-1

[Event "*** Titled Tuesday Blitz"]
[Site "Chess.com"]
[Date "2021.02.02"]
[Round "9"]
[White "Tartody"]
[Black "anon132639"]
[Result "1-0"]
[WhiteElo "2663"]
[BlackElo "2794"]
[TimeControl "180+1"]
[EndTime "11:46:32 PST"]
[Termination "Tartody won by checkmate"]

1. Nf3 {[%clk 0:03:00.9]} 1... Nf6 {[%clk 0:02:58.7]} 2. b3 {[%clk 0:03:01]}
2... c5 {[%clk 0:02:56.7]} 3. Bb2 {[%clk 0:03:01.2]} 3... Nc6 {[%clk 0:02:57.4]}
4. e3 {[%clk 0:03:00.6]} 4... b6 {[%clk 0:02:54.3]} 5. g3 {[%clk 0:02:58]} 5...
Bb7 {[%clk 0:02:54.4]} 6. Bg2 {[%clk 0:02:58.6]} 6... e6 {[%clk 0:02:53.5]} 7.
O-O {[%clk 0:02:59.1]} 7... Be7 {[%clk 0:02:53.5]} 8. Qe2 {[%clk 0:02:59.7]}
8... O-O {[%clk 0:02:52.7]} 9. Rd1 {[%clk 0:03:00.1]} 9... d5 {[%clk 0:02:51.3]}
10. Na3 {[%clk 0:02:59.7]} 10... Rc8 {[%clk 0:02:49.6]} 11. c4 {[%clk
0:02:59.3]} 11... Qc7 {[%clk 0:02:46.1]} 12. cxd5 {[%clk 0:02:57.5]} 12... Nxd5
{[%clk 0:02:43.1]} 13. e4 {[%clk 0:02:51.4]} 13... Nf6 {[%clk 0:02:23.3]} 14.
Rac1 {[%clk 0:02:21.2]} 14... Rfd8 {[%clk 0:02:21.3]} 15. d4 {[%clk 0:02:20.3]}
15... c4 {[%clk 0:02:21.4]} 16. Nxc4 {[%clk 0:02:17.1]} 16... Qb8 {[%clk
0:02:16.2]} 17. Nfe5 {[%clk 0:02:07.6]} 17... Nxe5 {[%clk 0:02:14.4]} 18. dxe5
{[%clk 0:02:06.9]} 18... Nd7 {[%clk 0:02:13.1]} 19. f4 {[%clk 0:01:37.7]} 19...
Bc5+ {[%clk 0:02:10.6]} 20. Kh1 {[%clk 0:01:36.8]} 20... Ba6 {[%clk 0:02:10.7]}
21. h4 {[%clk 0:01:30.4]} 21... h6 {[%clk 0:02:00.6]} 22. Kh2 {[%clk 0:01:30.1]}
22... Be7 {[%clk 0:01:58.8]} 23. Qg4 {[%clk 0:01:18.6]} 23... Bxc4 {[%clk
0:01:56.4]} 24. bxc4 {[%clk 0:01:19.5]} 24... Qc7 {[%clk 0:01:48.6]} 25. Rd6
{[%clk 0:01:05.7]} 25... h5 {[%clk 0:01:30.3]} 26. Qd1 {[%clk 0:01:05.1]} 26...
Bxd6 {[%clk 0:01:30]} 27. exd6 {[%clk 0:01:06]} 27... Qc5 {[%clk 0:01:30.6]} 28.
e5 {[%clk 0:00:59]} 28... g6 {[%clk 0:01:30.9]} 29. Bd4 {[%clk 0:00:44.9]} 29...
Qa3 {[%clk 0:01:28.9]} 30. Qe2 {[%clk 0:00:40.9]} 30... Nc5 {[%clk 0:01:27.4]}
31. Rc3 {[%clk 0:00:38.7]} 31... Qb4 {[%clk 0:01:26.5]} 32. g4 {[%clk
0:00:38.5]} 32... hxg4 {[%clk 0:01:24.4]} 33. Qxg4 {[%clk 0:00:32.5]} 33... Qb1
{[%clk 0:01:24.7]} 34. Rg3 {[%clk 0:00:29.1]} 34... Ne4 {[%clk 0:01:22.8]} 35.
Rh3 {[%clk 0:00:20.6]} 35... Rxc4 {[%clk 0:01:22.7]} 36. h5 {[%clk 0:00:18.9]}
36... g5 {[%clk 0:01:04.8]} 37. Be3 {[%clk 0:00:14.3]} 37... Rc2 {[%clk
0:00:57.1]} 38. fxg5 {[%clk 0:00:11.2]} 38... Nf2 {[%clk 0:00:56.8]} 39. Qf3
{[%clk 0:00:07.7]} 39... Nxh3 {[%clk 0:00:55.4]} 40. Qf6 {[%clk 0:00:05.1]}
40... Rxg2+ {[%clk 0:00:40.1]} 41. Kxg2 {[%clk 0:00:05.6]} 41... Qe4+ {[%clk
0:00:40.6]} 42. Kh2 {[%clk 0:00:04.7]} 42... Rc8 {[%clk 0:00:31.4]} 43. Bd2
{[%clk 0:00:02.7]} 43... Rc2 {[%clk 0:00:28]} 44. Qd8+ {[%clk 0:00:02.9]} 44...
Kh7 {[%clk 0:00:27.6]} 45. g6+ {[%clk 0:00:02.9]} 45... fxg6 {[%clk 0:00:20.8]}
46. Qe7+ {[%clk 0:00:03.5]} 46... Kg8 {[%clk 0:00:21.5]} 47. Qe8+ {[%clk
0:00:03.9]} 47... Kg7 {[%clk 0:00:22.2]} 48. h6+ {[%clk 0:00:03.4]} 48... Kh7
{[%clk 0:00:20.3]} 49. Qf7+ {[%clk 0:00:04.3]} 49... Kh8 {[%clk 0:00:20.9]} 50.
Qg7# {[%clk 0:00:05.2]} 1-0

[Event "*** Titled Tuesday Blitz"]
[Site "Chess.com"]
[Date "2021.02.02"]
[Round "9"]
[White "MF1966Idrisov"]
[Black "VladaSviridova"]
[Result "1-0"]
[WhiteElo "2385"]
[BlackElo "2253"]
[TimeControl "180+1"]
[EndTime "11:46:33 PST"]
[Termination "MF1966Idrisov won on time"]

1. Nf3 {[%clk 0:03:00.9]} 1... d5 {[%clk 0:02:59.5]} 2. b3 {[%clk 0:03:00.8]}
2... Nf6 {[%clk 0:02:53.7]} 3. Bb2 {[%clk 0:03:01.1]} 3... Bf5 {[%clk 0:02:54]}
4. e3 {[%clk 0:03:00.4]} 4... e6 {[%clk 0:02:53.9]} 5. Ne5 {[%clk 0:03:00]} 5...
Nbd7 {[%clk 0:02:51.2]} 6. f4 {[%clk 0:02:59.8]} 6... Bd6 {[%clk 0:02:19.2]} 7.
Be2 {[%clk 0:02:55.9]} 7... c6 {[%clk 0:01:55.7]} 8. O-O {[%clk 0:02:54.6]} 8...
Qc7 {[%clk 0:01:55.7]} 9. d4 {[%clk 0:02:52]} 9... O-O {[%clk 0:01:41.9]} 10. c4
{[%clk 0:02:47.1]} 10... b6 {[%clk 0:01:21.8]} 11. Nc3 {[%clk 0:02:45]} 11...
Ne4 {[%clk 0:01:13.9]} 12. Rc1 {[%clk 0:02:35.3]} 12... f6 {[%clk 0:01:03.1]}
13. Nf3 {[%clk 0:02:24.7]} 13... Nxc3 {[%clk 0:01:00]} 14. Rxc3 {[%clk
0:02:20.4]} 14... Qb7 {[%clk 0:00:51.6]} 15. Nh4 {[%clk 0:02:14.4]} 15... Be4
{[%clk 0:00:50.7]} 16. Bf3 {[%clk 0:02:10.2]} 16... f5 {[%clk 0:00:47.4]} 17.
Be2 {[%clk 0:01:59.6]} 17... Nf6 {[%clk 0:00:45.1]} 18. Nf3 {[%clk 0:01:58.1]}
18... Bxf3 {[%clk 0:00:43.6]} 19. Bxf3 {[%clk 0:01:58.2]} 19... Ne4 {[%clk
0:00:43.8]} 20. Bxe4 {[%clk 0:01:58.3]} 20... fxe4 {[%clk 0:00:41.3]} 21. Qg4
{[%clk 0:01:56.7]} 21... Rf6 {[%clk 0:00:36.9]} 22. Rfc1 {[%clk 0:01:55.6]}
22... Rg6 {[%clk 0:00:26.6]} 23. Qe2 {[%clk 0:01:41.8]} 23... Bb4 {[%clk
0:00:26.3]} 24. R3c2 {[%clk 0:01:40.8]} 24... Rf8 {[%clk 0:00:25.7]} 25. cxd5
{[%clk 0:01:38.4]} 25... exd5 {[%clk 0:00:25.4]} 26. Bc3 {[%clk 0:01:22.7]}
26... Ba3 {[%clk 0:00:24.6]} 27. Bb2 {[%clk 0:01:22.3]} 27... Be7 {[%clk
0:00:23.7]} 28. Rf1 {[%clk 0:01:12.2]} 28... Rgf6 {[%clk 0:00:20.7]} 29. Bc3
{[%clk 0:01:08.7]} 29... a5 {[%clk 0:00:20.5]} 30. Be1 {[%clk 0:01:07.7]} 30...
Kh8 {[%clk 0:00:19.8]} 31. Bh4 {[%clk 0:01:06.9]} 31... R6f7 {[%clk 0:00:19.1]}
32. Bxe7 {[%clk 0:01:06.3]} 32... Rxe7 {[%clk 0:00:17.5]} 33. Qg4 {[%clk
0:01:04.8]} 33... Ref7 {[%clk 0:00:15.8]} 34. Qg5 {[%clk 0:01:01.5]} 34... Rf6
{[%clk 0:00:15.8]} 35. Qe5 {[%clk 0:01:01]} 35... b5 {[%clk 0:00:13.3]} 36. Rfc1
{[%clk 0:00:59.6]} 36... a4 {[%clk 0:00:12.2]} 37. b4 {[%clk 0:00:59]} 37... a3
{[%clk 0:00:11.9]} 38. g4 {[%clk 0:00:56.8]} 38... Rc8 {[%clk 0:00:10.9]} 39.
Qxd5 {[%clk 0:00:52.6]} 39... h6 {[%clk 0:00:09.2]} 40. Qe5 {[%clk 0:00:50.2]}
40... Rcf8 {[%clk 0:00:07.7]} 41. Rc5 {[%clk 0:00:47.1]} 41... R8f7 {[%clk
0:00:07.4]} 42. h4 {[%clk 0:00:43.8]} 42... Re7 {[%clk 0:00:06.8]} 43. Qh5
{[%clk 0:00:43.2]} 43... Kh7 {[%clk 0:00:05.7]} 44. g5 {[%clk 0:00:42.8]} 44...
Rd6 {[%clk 0:00:03.9]} 45. Qg4 {[%clk 0:00:40.2]} 45... g6 {[%clk 0:00:02]} 46.
gxh6 {[%clk 0:00:39.4]} 46... Ree6 {[%clk 0:00:01]} 47. Kh2 {[%clk 0:00:36.6]}
47... Qf7 {[%clk 0:00:01.4]} 48. Rg1 {[%clk 0:00:35.4]} 48... Kxh6 {[%clk
0:00:01.7]} 49. h5 {[%clk 0:00:34.5]} 49... Kg7 {[%clk 0:00:01.5]} 50. Rg5
{[%clk 0:00:33]} 50... Rf6 {[%clk 0:00:01.1]} 51. f5 {[%clk 0:00:32.1]} 1-0

[Event "*** Titled Tuesday Blitz"]
[Site "Chess.com"]
[Date "2021.02.02"]
[Round "9"]
[White "Konavets"]
[Black "PavelShkapenko"]
[Result "1-0"]
[WhiteElo "2931"]
[BlackElo "2728"]
[TimeControl "180+1"]
[EndTime "11:46:34 PST"]
[Termination "Konavets won by resignation"]

1. e4 {[%clk 0:02:52.9]} 1... e5 {[%clk 0:02:57.3]} 2. Nf3 {[%clk 0:02:52.9]}
2... Nc6 {[%clk 0:02:57.8]} 3. Bc4 {[%clk 0:02:53]} 3... d6 {[%clk 0:02:57.3]}
4. d4 {[%clk 0:02:52.7]} 4... Nf6 {[%clk 0:02:56.4]} 5. dxe5 {[%clk 0:02:44.3]}
5... dxe5 {[%clk 0:02:56.2]} 6. Qe2 {[%clk 0:02:36.6]} 6... Bg4 {[%clk
0:02:52.9]} 7. c3 {[%clk 0:02:36.6]} 7... Bd6 {[%clk 0:02:46.8]} 8. Bg5 {[%clk
0:02:36.2]} 8... O-O {[%clk 0:02:46.4]} 9. Nbd2 {[%clk 0:02:36.2]} 9... a6
{[%clk 0:02:34.9]} 10. Bb3 {[%clk 0:02:35.1]} 10... Qe7 {[%clk 0:02:22.1]} 11.
h3 {[%clk 0:02:34.3]} 11... Bh5 {[%clk 0:02:21.7]} 12. g4 {[%clk 0:02:32.6]}
12... Bg6 {[%clk 0:02:21.9]} 13. Nh4 {[%clk 0:02:33]} 13... Na5 {[%clk
0:02:18.6]} 14. Nf5 {[%clk 0:02:30.5]} 14... Bxf5 {[%clk 0:02:17.1]} 15. gxf5
{[%clk 0:02:31.4]} 15... Nxb3 {[%clk 0:02:15.6]} 16. axb3 {[%clk 0:02:32.3]}
16... Kh8 {[%clk 0:02:15.3]} 17. Rg1 {[%clk 0:02:31.1]} 17... Rg8 {[%clk
0:01:48.9]} 18. Nc4 {[%clk 0:02:27.2]} 18... Bc5 {[%clk 0:01:43.6]} 19. b4
{[%clk 0:02:27.2]} 19... Ba7 {[%clk 0:01:43]} 20. O-O-O {[%clk 0:02:17.9]} 20...
Rad8 {[%clk 0:01:42.3]} 21. Na5 {[%clk 0:02:16.7]} 21... Rxd1+ {[%clk
0:01:34.7]} 22. Rxd1 {[%clk 0:02:15.7]} 22... c6 {[%clk 0:01:34.8]} 23. f3
{[%clk 0:02:11.3]} 23... Qc7 {[%clk 0:01:03.8]} 24. Nc4 {[%clk 0:02:07]} 24...
Nh5 {[%clk 0:01:01.4]} 25. Nd6 {[%clk 0:02:05.9]} 25... f6 {[%clk 0:01:01.2]}
26. Qc4 {[%clk 0:02:05]} 26... Rf8 {[%clk 0:01:01.2]} 27. Bh4 {[%clk 0:01:52.5]}
27... h6 {[%clk 0:00:53.1]} 28. Kc2 {[%clk 0:01:47.3]} 28... Nf4 {[%clk
0:00:53]} 29. Bg3 {[%clk 0:01:47.1]} 29... Nxh3 {[%clk 0:00:48.3]} 30. Rd3
{[%clk 0:01:32.7]} 30... Bf2 {[%clk 0:00:38.6]} 31. Bh2 {[%clk 0:01:30.9]} 31...
Ba7 {[%clk 0:00:36.3]} 32. f4 {[%clk 0:01:28]} 32... Nxf4 {[%clk 0:00:34.9]} 33.
Bxf4 {[%clk 0:01:27.5]} 33... exf4 {[%clk 0:00:35.3]} 34. Qe6 {[%clk 0:01:28.2]}
34... Kh7 {[%clk 0:00:33.2]} 35. e5 {[%clk 0:01:20]} 35... fxe5 {[%clk
0:00:22.9]} 36. Ne8 {[%clk 0:01:17.8]} 36... Qf7 {[%clk 0:00:21]} 37. Nd6 {[%clk
0:01:14.1]} 37... Qf6 {[%clk 0:00:19.8]} 38. Ne4 {[%clk 0:01:12.1]} 38... Qxe6
{[%clk 0:00:19.7]} 39. fxe6 {[%clk 0:01:13]} 39... Re8 {[%clk 0:00:20.1]} 40.
Rd6 {[%clk 0:01:07.6]} 40... f3 {[%clk 0:00:18.8]} 41. Kd1 {[%clk 0:01:05.6]}
41... Bb8 {[%clk 0:00:16.1]} 42. Rd7 {[%clk 0:01:05.5]} 42... Rxe6 {[%clk
0:00:16.3]} 43. Rxb7 {[%clk 0:01:05.6]} 43... Bd6 {[%clk 0:00:15.8]} 44. Ke1
{[%clk 0:01:04.3]} 44... Be7 {[%clk 0:00:14.7]} 45. Kf2 {[%clk 0:01:04]} 45...
Bh4+ {[%clk 0:00:14.6]} 46. Kxf3 {[%clk 0:01:04.1]} 46... Re7 {[%clk 0:00:15.1]}
47. Rb6 {[%clk 0:01:03.6]} 47... Rf7+ {[%clk 0:00:15.4]} 48. Ke3 {[%clk
0:01:02.4]} 48... Rf4 {[%clk 0:00:10.6]} 49. Rxc6 {[%clk 0:01:01.7]} 49... Rf1
{[%clk 0:00:10.3]} 50. Rxa6 {[%clk 0:01:01.2]} 50... Re1+ {[%clk 0:00:10.7]} 51.
Kf3 {[%clk 0:01:01]} 51... Rb1 {[%clk 0:00:11]} 52. Ra2 {[%clk 0:00:59.7]} 52...
Be7 {[%clk 0:00:09.2]} 53. b5 {[%clk 0:00:59.1]} 53... Bd8 {[%clk 0:00:09.2]}
54. c4 {[%clk 0:00:58.5]} 54... Rf1+ {[%clk 0:00:08.3]} 55. Ke2 {[%clk
0:00:58.2]} 55... Rf4 {[%clk 0:00:08.2]} 56. Kd3 {[%clk 0:00:57.9]} 56... Rf3+
{[%clk 0:00:08.3]} 57. Ke2 {[%clk 0:00:57]} 57... Rf4 {[%clk 0:00:08.8]} 58. Ke3
{[%clk 0:00:57.6]} 58... Rh4 {[%clk 0:00:09.1]} 59. c5 {[%clk 0:00:57.7]} 59...
Rh3+ {[%clk 0:00:09.7]} 60. Ke2 {[%clk 0:00:57.9]} 60... Rh4 {[%clk 0:00:10.2]}
61. Ra4 {[%clk 0:00:58]} 61... Kg6 {[%clk 0:00:09.7]} 62. b6 {[%clk 0:00:55.9]}
62... Rh2+ {[%clk 0:00:09.8]} 63. Nf2 {[%clk 0:00:55.8]} 63... Kf5 {[%clk
0:00:09.6]} 64. Ra8 {[%clk 0:00:52.8]} 64... Be7 {[%clk 0:00:08.6]} 65. b7
{[%clk 0:00:51.6]} 1-0

[Event "*** Titled Tuesday Blitz"]
[Site "Chess.com"]
[Date "2021.02.02"]
[Round "9"]
[White "anantone"]
[Black "Witik"]
[Result "1-0"]
[WhiteElo "2586"]
[BlackElo "2757"]
[TimeControl "180+1"]
[EndTime "11:46:34 PST"]
[Termination "anantone won by checkmate"]

1. c4 {[%clk 0:03:00.9]} 1... d6 {[%clk 0:02:57.1]} 2. g3 {[%clk 0:03:00]} 2...
c6 {[%clk 0:02:57]} 3. Bg2 {[%clk 0:03:00.5]} 3... h6 {[%clk 0:02:57.1]} 4. Nc3
{[%clk 0:03:01.1]} 4... Nd7 {[%clk 0:02:57.2]} 5. d4 {[%clk 0:03:01.7]} 5... g5
{[%clk 0:02:57.3]} 6. h4 {[%clk 0:03:01]} 6... Bg7 {[%clk 0:02:34.4]} 7. hxg5
{[%clk 0:02:58.6]} 7... hxg5 {[%clk 0:02:35.3]} 8. Rxh8 {[%clk 0:02:58.6]} 8...
Bxh8 {[%clk 0:02:36.2]} 9. Bxg5 {[%clk 0:02:58.3]} 9... Qb6 {[%clk 0:02:36.4]}
10. Nf3 {[%clk 0:02:17]} 10... Qxb2 {[%clk 0:02:35.2]} 11. Qc1 {[%clk 0:02:14]}
11... Qb4 {[%clk 0:02:24.8]} 12. Be3 {[%clk 0:01:50]} 12... Qxc4 {[%clk
0:02:16.1]} 13. Rb1 {[%clk 0:01:47.8]} 13... Ngf6 {[%clk 0:02:06.7]} 14. Qc2
{[%clk 0:01:45.6]} 14... Nd5 {[%clk 0:01:54.2]} 15. Qh7 {[%clk 0:01:42.8]} 15...
Nxe3 {[%clk 0:00:38.1]} 16. Qxh8+ {[%clk 0:01:39.8]} 16... Nf8 {[%clk
0:00:38.8]} 17. fxe3 {[%clk 0:01:36.2]} 17... Qxc3+ {[%clk 0:00:39.1]} 18. Kf2
{[%clk 0:01:36.7]} 18... Qc2 {[%clk 0:00:27.6]} 19. Rh1 {[%clk 0:01:32.2]} 19...
Be6 {[%clk 0:00:24]} 20. Qg7 {[%clk 0:01:18.7]} 20... O-O-O {[%clk 0:00:22.3]}
21. Ng5 {[%clk 0:01:18.5]} 21... Bc4 {[%clk 0:00:20.9]} 22. Bf3 {[%clk
0:01:17.5]} 22... Ne6 {[%clk 0:00:17]} 23. Nxe6 {[%clk 0:01:08.7]} 23... Bxe6
{[%clk 0:00:17.6]} 24. Rh8 {[%clk 0:01:01.8]} 24... Qxa2 {[%clk 0:00:16.1]} 25.
Rxd8+ {[%clk 0:00:58]} 25... Kxd8 {[%clk 0:00:17]} 26. Qf8+ {[%clk 0:00:58.6]}
26... Kd7 {[%clk 0:00:16.7]} 27. Qb8 {[%clk 0:00:59.2]} 27... Qa6 {[%clk
0:00:16]} 28. g4 {[%clk 0:00:58.1]} 28... Qb6 {[%clk 0:00:13.6]} 29. g5 {[%clk
0:00:55.8]} 29... a5 {[%clk 0:00:13.9]} 30. Bh5 {[%clk 0:00:30.7]} 30... a4
{[%clk 0:00:12]} 31. g6 {[%clk 0:00:30.9]} 31... fxg6 {[%clk 0:00:09.3]} 32.
Bxg6 {[%clk 0:00:31.8]} 32... Qd8 {[%clk 0:00:08.2]} 33. Qxb7+ {[%clk
0:00:25.8]} 33... Qc7 {[%clk 0:00:08.6]} 34. Qa8 {[%clk 0:00:15.6]} 34... Bb3
{[%clk 0:00:05.4]} 35. Qe8+ {[%clk 0:00:10.1]} 35... Ke6 {[%clk 0:00:05.8]} 36.
Qf7+ {[%clk 0:00:08.6]} 36... Kd7 {[%clk 0:00:06]} 37. Qe8+ {[%clk 0:00:08.2]}
37... Ke6 {[%clk 0:00:06.2]} 38. Qg8+ {[%clk 0:00:07.5]} 38... Kf6 {[%clk
0:00:05.8]} 39. Qh7 {[%clk 0:00:05.6]} 39... Qd8 {[%clk 0:00:03.6]} 40. Be4
{[%clk 0:00:03.9]} 40... Qf8 {[%clk 0:00:03.5]} 41. Ke1 {[%clk 0:00:03.9]} 41...
Qg7 {[%clk 0:00:03.6]} 42. Qf5# {[%clk 0:00:03.9]} 1-0

[Event "*** Titled Tuesday Blitz"]
[Site "Chess.com"]
[Date "2021.02.02"]
[Round "9"]
[White "IMAghasiyevKamal"]
[Black "ketster"]
[Result "1-0"]
[WhiteElo "2579"]
[BlackElo "2391"]
[TimeControl "180+1"]
[EndTime "11:46:34 PST"]
[Termination "IMAghasiyevKamal won by resignation"]

1. d4 {[%clk 0:02:59.3]} 1... Nf6 {[%clk 0:02:59.4]} 2. c4 {[%clk 0:02:58.1]}
2... e6 {[%clk 0:02:58.5]} 3. g3 {[%clk 0:02:57.9]} 3... Bb4+ {[%clk 0:02:56.8]}
4. Bd2 {[%clk 0:02:57.6]} 4... Be7 {[%clk 0:02:56]} 5. Bg2 {[%clk 0:02:57.2]}
5... d5 {[%clk 0:02:56.3]} 6. Qc2 {[%clk 0:02:57.5]} 6... O-O {[%clk 0:02:56.1]}
7. Nf3 {[%clk 0:02:57.8]} 7... Nbd7 {[%clk 0:02:55.3]} 8. O-O {[%clk 0:02:57.1]}
8... c6 {[%clk 0:02:54.4]} 9. Bf4 {[%clk 0:02:55.3]} 9... Ne4 {[%clk 0:02:52.3]}
10. Nc3 {[%clk 0:02:50.4]} 10... g5 {[%clk 0:02:47.4]} 11. Bc1 {[%clk
0:02:47.7]} 11... f5 {[%clk 0:02:42.8]} 12. b3 {[%clk 0:02:34.6]} 12... Bf6
{[%clk 0:02:39.5]} 13. Rd1 {[%clk 0:02:20.8]} 13... b6 {[%clk 0:02:26]} 14. Ba3
{[%clk 0:02:16.1]} 14... Rf7 {[%clk 0:02:25.1]} 15. cxd5 {[%clk 0:02:06.9]}
15... cxd5 {[%clk 0:02:08.8]} 16. Nb5 {[%clk 0:01:54.8]} 16... Nf8 {[%clk
0:02:02.9]} 17. Ne5 {[%clk 0:01:52.4]} 17... Bxe5 {[%clk 0:01:49.3]} 18. dxe5
{[%clk 0:01:51.2]} 18... Ba6 {[%clk 0:01:49.4]} 19. Nd6 {[%clk 0:01:35.4]} 19...
Rc7 {[%clk 0:01:39.7]} 20. Qb2 {[%clk 0:01:31.5]} 20... Nc3 {[%clk 0:01:35.1]}
21. Re1 {[%clk 0:01:31.6]} 21... Ng6 {[%clk 0:01:20.2]} 22. Rac1 {[%clk
0:01:24.5]} 22... Nxe2+ {[%clk 0:01:17.4]} 23. Rxe2 {[%clk 0:01:20.4]} 23...
Rxc1+ {[%clk 0:01:15.4]} 24. Qxc1 {[%clk 0:01:18.8]} 24... Bxe2 {[%clk
0:01:15.3]} 25. Bb2 {[%clk 0:01:07.9]} 25... Ba6 {[%clk 0:01:06.2]} 26. Qc6
{[%clk 0:01:04.5]} 26... Ne7 {[%clk 0:01:03.6]} 27. Qa4 {[%clk 0:01:03.4]} 27...
Bc8 {[%clk 0:00:59.8]} 28. h4 {[%clk 0:01:00.1]} 28... Bd7 {[%clk 0:00:54.1]}
29. Qb4 {[%clk 0:00:53]} 29... Nc6 {[%clk 0:00:51.8]} 30. Qd2 {[%clk 0:00:48.9]}
30... gxh4 {[%clk 0:00:46.8]} 31. Bxd5 {[%clk 0:00:48.6]} 31... Qe7 {[%clk
0:00:38.2]} 32. Nxf5 {[%clk 0:00:46.1]} 32... Qf8 {[%clk 0:00:22.2]} 33. Qg5+
{[%clk 0:00:39.2]} 33... Kh8 {[%clk 0:00:21.9]} 34. Bc4 {[%clk 0:00:35.2]} 34...
b5 {[%clk 0:00:10.1]} 35. Bxb5 {[%clk 0:00:34.5]} 35... Qxf5 {[%clk 0:00:04.6]}
36. Qxf5 {[%clk 0:00:33.1]} 36... exf5 {[%clk 0:00:05.5]} 37. e6+ {[%clk
0:00:33.2]} 37... Kg8 {[%clk 0:00:06.1]} 38. exd7 {[%clk 0:00:33.5]} 38... Nd8
{[%clk 0:00:05.5]} 39. Bc4+ {[%clk 0:00:28.2]} 39... Kf8 {[%clk 0:00:05.4]} 40.
Bf6 {[%clk 0:00:26.5]} 40... hxg3 {[%clk 0:00:04.3]} 41. fxg3 {[%clk 0:00:26.9]}
41... a5 {[%clk 0:00:03.9]} 42. a4 {[%clk 0:00:26.6]} 42... Rb8 {[%clk
0:00:03.6]} 43. Kf2 {[%clk 0:00:26.5]} 43... h6 {[%clk 0:00:03.8]} 44. Kf3
{[%clk 0:00:26.5]} 44... Nf7 {[%clk 0:00:04.1]} 45. Bxf7 {[%clk 0:00:25.6]}
45... Rd8 {[%clk 0:00:03.4]} 46. Bxd8 {[%clk 0:00:25.4]} 1-0